bitfinex/quotes_BTCUSD_20250616
["timestamp","ask_amount","ask_price","bid_price","bid_amount"]
[1750082674380,0.01141097,107250.0,107240.0,0.50007274]
[1750082674644,0.22871499,107250.0,107240.0,0.26454244]
[1750082674905,0.24255891,107250.0,107240.0,0.46019637]
[1750082675175,0.24255891,107250.0,107240.0,0.23447193]
[1750082675398,0.22391185,107250.0,107240.0,0.2164]
[1750082675631,0.22184227,107240.0,107230.0,0.2]
[1750082675858,0.01865053,107230.0,107220.0,0.3645109]
[1750082676082,0.02317027,107230.0,107220.0,0.67715266]
[1750082676526,0.01384496,107230.0,107220.0,0.67715266]
[1750082676743,0.01865009,107230.0,107220.0,0.67715266]
[1750082677392,0.03730079,107230.0,107220.0,0.67715266]
[1750082677743,0.03730079,107230.0,107220.0,0.68015266]
[1750082677962,0.02797531,107230.0,107220.0,0.68015266]
[1750082678179,0.0279754,107230.0,107220.0,0.68015266]
[1750082678406,0.01865009,107230.0,107220.0,0.68015266]
[1750082678606,0.0279754,107230.0,107220.0,0.68215266]
[1750082678826,0.22381593,107230.0,107220.0,0.68215266]
[1750082679044,0.23314237,107230.0,107220.0,0.67282674]
[1750082679239,0.23766237,107230.0,107220.0,0.79215283]
[1750082679459,0.01865044,107230.0,107220.0,0.80147883]
[1750082679719,0.02797592,107230.0,107220.0,0.80147883]
[1750082680191,0.02797584,107230.0,107220.0,0.80147883]
[1750082680644,0.01865044,107230.0,107220.0,0.80147883]
[1750082680856,0.02797601,107230.0,107220.0,0.58507883]
[1750082681078,0.22381663,107230.0,107220.0,0.80143883]
[1750082681292,0.01865044,107230.0,107220.0,0.80143883]
[1750082681768,0.03730089,107230.0,107220.0,0.79211213]
[1750082681993,0.23314151,107230.0,107220.0,0.45582073]
[1750082682211,0.23198619,107230.0,107220.0,0.52721897]
[1750082682443,0.24476062,107230.0,107220.0,0.16372]
[1750082682662,0.24476062,107230.0,107220.0,0.22136]
[1750082682893,0.62788644,107230.0,107220.0,0.005]
[1750082683114,0.7741282,107230.0,107220.0,0.005]
[1750082683334,0.8021462,107230.0,107220.0,0.22136]
[1750082683551,0.7741282,107230.0,107220.0,0.22136]
[1750082683763,0.7741282,107230.0,107220.0,0.21936]
[1750082683968,5.8241282,107230.0,107220.0,0.21936]
[1750082684178,5.8241282,107230.0,107220.0,0.21636]
[1750082684382,5.8241282,107230.0,107220.0,0.30736]
[1750082684600,5.8241282,107230.0,107220.0,0.30636]
[1750082685024,5.8261282,107230.0,107220.0,0.13872]
[1750082685245,5.8261282,107230.0,107220.0,0.30632]
[1750082685891,5.67988644,107230.0,107220.0,0.30632]
[1750082686094,5.63676062,107230.0,107220.0,0.49285236]
[1750082686299,5.63676062,107230.0,107220.0,0.30632]
[1750082686724,5.63676062,107230.0,107220.0,0.49285236]
[1750082686937,5.61466062,107230.0,107220.0,0.51150532]
[1750082687154,0.35132513,107230.0,107220.0,0.53015759]
[1750082687373,0.35132505,107230.0,107220.0,0.55255759]
[1750082687609,0.35132505,107230.0,107220.0,0.64879935]
[1750082687610,0.01132505,107230.0,107220.0,0.64879935]
[1750082687788,0.35132505,107230.0,107220.0,0.64879935]
[1750082688288,0.36997593,107230.0,107220.0,0.64879935]
[1750082688522,0.36065036,107230.0,107220.0,0.64879935]
[1750082688729,0.36065027,107230.0,107220.0,0.64879935]
[1750082689492,0.35132505,107230.0,107220.0,0.64879935]
[1750082689710,0.36065027,107230.0,107220.0,0.64879935]
[1750082690280,0.36065027,107230.0,107220.0,0.64875935]
[1750082690983,0.342,107230.0,107220.0,0.64875935]
[1750082691191,0.002,107230.0,107220.0,0.64875935]
[1750082691405,0.01132505,107230.0,107220.0,0.64875935]
[1750082691622,0.002,107230.0,107220.0,0.64875935]
[1750082691845,0.002,107230.0,107220.0,0.67125935]
[1750082692063,0.34176658,107240.0,107230.0,0.21449115]
[1750082692278,0.54163373,107240.0,107230.0,0.20516602]
[1750082692692,0.02797427,107240.0,107230.0,0.20516602]
[1750082692876,0.0186494,107240.0,107230.0,0.20516602]
[1750082693084,0.0186494,107240.0,107230.0,0.21724115]
[1750082693332,0.00932435,107240.0,107230.0,0.21449115]
[1750082693560,0.02328775,107250.0,107240.0,0.21447116]
[1750082693771,0.02805819,107250.0,107240.0,0.52278292]
[1750082694054,0.01873445,107250.0,107240.0,0.52278292]
[1750082694534,0.01873437,107250.0,107240.0,0.52278292]
[1750082694762,0.03205794,107250.0,107240.0,0.52278292]
[1750082694988,0.02573437,107250.0,107240.0,0.52278292]
[1750082695218,0.03105794,107250.0,107240.0,0.52278292]
[1750082695513,0.00941097,107250.0,107240.0,0.52278292]
[1750082695730,0.02805811,107250.0,107240.0,0.52278292]
[1750082695946,0.23673942,107250.0,107240.0,0.24552479]
[1750082696189,0.24125942,107250.0,107240.0,0.44134706]
[1750082696392,0.24125942,107250.0,107240.0,0.45067167]
[1750082696624,0.23193576,107250.0,107240.0,0.02]
[1750082696853,0.24391193,107250.0,107240.0,0.2362]
[1750082697070,0.24491193,107250.0,107240.0,0.2362]
[1750082697301,0.00932505,107230.0,107220.0,0.34915854]
[1750082697532,0.01865062,107230.0,107220.0,0.61695274]
[1750082697753,0.01865036,107230.0,107220.0,0.61695274]
[1750082697981,0.02797593,107230.0,107220.0,0.61695274]
[1750082698225,0.01865036,107230.0,107220.0,0.61695274]
[1750082698451,0.02513821,107240.0,107230.0,0.20516584]
[1750082698712,0.01216291,107240.0,107230.0,0.21724097]
[1750082698919,0.02148683,107240.0,107230.0,0.24966619]
[1750082699142,0.04013614,107240.0,107230.0,0.24966619]
[1750082699541,0.04946093,107240.0,107230.0,0.24966619]
[1750082699754,0.2359585,107240.0,107230.0,0.24966619]
[1750082700162,0.04013614,107240.0,107230.0,0.24966619]
[1750082700378,0.00283821,107240.0,107230.0,0.66586619]
[1750082700655,0.00283821,107240.0,107230.0,0.98380795]
[1750082700875,0.00283821,107240.0,107230.0,1.00576795]
[1750082701286,0.00283821,107240.0,107230.0,1.00676795]
[1750082702127,0.00283821,107240.0,107230.0,1.02676795]
[1750082703471,0.00283821,107240.0,107230.0,1.64251142]
[1750082703680,0.00283821,107240.0,107230.0,1.06974722]
[1750082707158,0.00283821,107240.0,107230.0,1.65705227]
[1750082707370,0.00283821,107240.0,107230.0,1.06974722]
[1750082707573,0.00283821,107240.0,107230.0,1.65705227]
[1750082707787,0.00283821,107240.0,107230.0,1.06974722]
[1750082709484,0.00283821,107240.0,107230.0,1.44089227]
[1750082709692,0.00283821,107240.0,107230.0,1.65573227]
[1750082709900,0.00283821,107240.0,107230.0,1.43789227]
[1750082710115,0.00283821,107240.0,107230.0,1.65873227]
[1750082710451,0.00283821,107240.0,107230.0,1.65573227]
[1750082710692,0.00283821,107240.0,107230.0,1.99373227]
[1750082710912,0.00283821,107240.0,107230.0,2.00173227]
[1750082712178,0.00283821,107240.0,107230.0,1.78589227]
[1750082712396,0.00283821,107240.0,107230.0,2.00169227]
[1750082713257,8.775e-05,107250.0,107240.0,0.26087116]
[1750082713511,8.775e-05,107250.0,107240.0,0.96379882]
[1750082713945,8.775e-05,107250.0,107240.0,0.37649377]
[1750082714370,8.775e-05,107250.0,107240.0,0.37365556]
[1750082714615,8.775e-05,107250.0,107240.0,0.59141556]
[1750082715043,8.775e-05,107250.0,107240.0,0.59441556]
[1750082716114,8.775e-05,107250.0,107240.0,1.18172061]
[1750082716116,8.775e-05,107250.0,107240.0,1.52172061]
[1750082716347,8.775e-05,107250.0,107240.0,2.18211001]
[1750082717055,8.775e-05,107250.0,107240.0,2.18011001]
[1750082717536,8.775e-05,107250.0,107240.0,2.19433715]
[1750082717765,8.775e-05,107250.0,107240.0,2.18633715]
[1750082718233,8.775e-05,107250.0,107240.0,2.19833715]
[1750082719121,8.775e-05,107250.0,107240.0,2.19713043]
[1750082719362,8.775e-05,107250.0,107240.0,0.80312705]
[1750082719596,8.775e-05,107250.0,107240.0,2.22373439]
[1750082720351,8.775e-05,107250.0,107240.0,2.21873439]
[1750082720558,8.775e-05,107250.0,107240.0,2.21173439]
[1750082720765,8.775e-05,107250.0,107240.0,2.21369439]
[1750082720982,8.775e-05,107250.0,107240.0,2.21569439]
[1750082721624,8.775e-05,107250.0,107240.0,2.00005439]
[1750082721840,8.775e-05,107250.0,107240.0,2.21569439]
[1750082723915,8.775e-05,107250.0,107240.0,2.21565439]
[1750082726604,8.775e-05,107250.0,107240.0,2.21561439]
[1750082726823,8.775e-05,107250.0,107240.0,2.21557439]
[1750082727263,8.775e-05,107250.0,107240.0,2.20908833]
[1750082727491,8.775e-05,107250.0,107240.0,2.2184126]
[1750082729451,8.775e-05,107250.0,107240.0,2.29149695]
[1750082730171,8.775e-05,107250.0,107240.0,2.2184126]
[1750082730863,0.02368775,107250.0,107240.0,1.00327292]
[1750082731105,0.05020775,107250.0,107240.0,0.98327292]
[1750082731346,0.05020775,107250.0,107240.0,1.19875292]
[1750082731583,0.05020775,107250.0,107240.0,0.98327292]
[1750082731829,0.27398255,107250.0,107240.0,0.75529933]
[1750082732040,0.27398255,107250.0,107240.0,1.20803727]
[1750082732041,0.05953097,107250.0,107240.0,1.20803727]
[1750082732262,0.05020775,107250.0,107240.0,1.20303727]
[1750082732478,8.775e-05,107250.0,107240.0,1.78973896]
[1750082732716,8.775e-05,107250.0,107240.0,1.83042981]
[1750082732960,8.775e-05,107250.0,107240.0,1.61498981]
[1750082733187,8.775e-05,107250.0,107240.0,1.24172812]
[1750082733395,8.775e-05,107250.0,107240.0,1.85202981]
[1750082733661,8.775e-05,107250.0,107240.0,1.85002981]
[1750082734320,8.775e-05,107250.0,107240.0,1.84974981]
[1750082734982,8.775e-05,107250.0,107240.0,1.04788812]
[1750082735248,0.02308775,107250.0,107240.0,1.19871727]
[1750082735480,0.07807873,107250.0,107240.0,0.79453933]
[1750082735709,0.25523551,107250.0,107240.0,0.3168]
[1750082735936,0.24591185,107250.0,107240.0,0.48368]
[1750082736588,0.24591185,107250.0,107240.0,0.3168]
[1750082736806,0.24591185,107250.0,107240.0,0.48368]
[1750082737033,0.24591185,107250.0,107240.0,0.48364]
[1750082738164,0.24591185,107250.0,107240.0,0.68878714]
[1750082738381,0.24591185,107250.0,107240.0,0.67946244]
[1750082738600,0.05010775,107250.0,107240.0,1.00367779]
[1750082738825,0.05943106,107250.0,107240.0,1.00367779]
[1750082739124,0.05010775,107250.0,107240.0,1.00367779]
[1750082741246,0.05010775,107250.0,107240.0,1.20367779]
[1750082741465,0.06875446,107250.0,107240.0,1.20367779]
[1750082741655,0.05010775,107250.0,107240.0,1.20367779]
[1750082743542,0.05010775,107250.0,107240.0,1.20359779]
[1750082744413,0.02308775,107250.0,107240.0,1.20359779]
[1750082745700,0.05110775,107250.0,107240.0,1.20359779]
[1750082745944,0.05110775,107250.0,107240.0,0.83683779]
[1750082746171,0.07907873,107250.0,107240.0,0.69799176]
[1750082746393,0.06043115,107250.0,107240.0,0.71664064]
[1750082746682,0.06975472,107250.0,107240.0,0.71664064]
[1750082746928,0.27488256,107250.0,107240.0,0.71664064]
[1750082747156,0.08840238,107250.0,107240.0,0.50168064]
[1750082747375,0.06043115,107250.0,107240.0,0.50168064]
[1750082747596,0.06975481,107250.0,107240.0,0.71664064]
[1750082747809,0.07907855,107250.0,107240.0,0.71664064]
[1750082748023,0.08840238,107250.0,107240.0,0.71664064]
[1750082748679,0.07907855,107250.0,107240.0,0.71664064]
[1750082749288,0.27488265,107250.0,107240.0,0.70731637]
[1750082749527,0.25516689,107240.0,107230.0,0.002]
[1750082749744,0.25516689,107240.0,107230.0,0.05024]
[1750082750430,0.25516689,107240.0,107230.0,0.21692]
[1750082750885,0.25516689,107240.0,107230.0,0.05024]
[1750082751112,0.25516689,107240.0,107230.0,0.21692]
[1750082751113,0.59516689,107240.0,107230.0,0.21692]
[1750082751377,0.67663621,107240.0,107230.0,0.21692]
[1750082751621,0.82287797,107240.0,107230.0,0.05024]
[1750082752118,0.82287797,107240.0,107230.0,0.21688]
[1750082752329,0.82387797,107240.0,107230.0,0.21688]
[1750082753505,0.82687797,107240.0,107230.0,0.21688]
[1750082753978,0.82987797,107240.0,107230.0,0.21688]
[1750082755735,0.68363621,107240.0,107230.0,0.40339496]
[1750082755968,0.60216689,107240.0,107230.0,0.21688]
[1750082756473,0.60216689,107240.0,107230.0,0.21649115]
[1750082756474,0.03,107240.0,107230.0,0.21649115]
[1750082756679,0.007,107240.0,107230.0,0.50652972]
[1750082756876,0.05346845,107240.0,107230.0,0.43133115]
[1750082757127,0.06279298,107240.0,107230.0,0.43133115]
[1750082757355,0.04414418,107240.0,107230.0,0.43133115]
[1750082757576,0.04864853,107240.0,107230.0,0.43133115]
[1750082758290,0.03932418,107240.0,107230.0,0.43133115]
[1750082758518,0.007,107240.0,107230.0,0.73224291]
[1750082758740,0.007,107240.0,107230.0,0.75514291]
[1750082758976,0.007,107240.0,107230.0,0.75510291]
[1750082759427,0.007,107240.0,107230.0,0.58220291]
[1750082759648,0.007,107240.0,107230.0,0.79700291]
[1750082760305,0.004,107240.0,107230.0,0.79700291]
[1750082760524,0.004,107240.0,107230.0,1.49371012]
[1750082760739,0.001,107240.0,107230.0,1.49371012]
[1750082761499,0.003,107240.0,107230.0,1.83371012]
[1750082761757,8.775e-05,107250.0,107240.0,0.45877116]
[1750082762001,8.775e-05,107250.0,107240.0,0.55976292]
[1750082763591,8.775e-05,107250.0,107240.0,0.77420292]
[1750082764018,8.775e-05,107250.0,107240.0,0.77720292]
[1750082764286,8.775e-05,107250.0,107240.0,0.78653609]
[1750082764508,8.775e-05,107250.0,107240.0,0.78353609]
[1750082764718,8.775e-05,107250.0,107240.0,0.57409609]
[1750082764942,8.775e-05,107250.0,107240.0,0.56876292]
[1750082765155,8.775e-05,107250.0,107240.0,0.78316292]
[1750082767809,8.775e-05,107250.0,107240.0,0.56876292]
[1750082768034,8.775e-05,107250.0,107240.0,0.76122292]
[1750082768253,8.775e-05,107250.0,107240.0,0.76118292]
[1750082768716,8.775e-05,107250.0,107240.0,0.78338292]
[1750082769492,8.775e-05,107250.0,107240.0,0.54211292]
[1750082769934,8.775e-05,107250.0,107240.0,0.49173933]
[1750082769935,8.775e-05,107250.0,107240.0,0.70605933]
[1750082770187,8.775e-05,107250.0,107240.0,0.70894933]
[1750082770449,8.775e-05,107250.0,107240.0,0.69705933]
[1750082770698,8.775e-05,107250.0,107240.0,0.51056176]
[1750082770987,8.775e-05,107250.0,107240.0,0.51845176]
[1750082771475,8.775e-05,107250.0,107240.0,0.51545176]
[1750082771714,8.775e-05,107250.0,107240.0,0.51352176]
[1750082772154,8.775e-05,107250.0,107240.0,0.34720176]
[1750082772367,8.775e-05,107250.0,107240.0,0.51352176]
[1750082772583,0.02348775,107250.0,107240.0,0.51352176]
[1750082772801,0.02348775,107250.0,107240.0,0.29924176]
[1750082773018,0.02348775,107250.0,107240.0,0.31352176]
[1750082773247,0.02348775,107250.0,107240.0,0.003]
[1750082773501,0.05129775,107250.0,107240.0,0.003]
[1750082773698,0.05129775,107250.0,107240.0,0.21724]
[1750082775321,0.02799775,107250.0,107240.0,0.21724]
[1750082776187,0.02348775,107250.0,107240.0,0.21724]
[1750082776412,8.775e-05,107250.0,107240.0,0.10399176]
[1750082776627,8.775e-05,107250.0,107240.0,0.31819176]
[1750082778043,0.02318775,107250.0,107240.0,0.003]
[1750082778274,0.04919775,107250.0,107240.0,0.05096]
[1750082778722,0.04919775,107250.0,107240.0,0.21716]
[1750082779391,0.38919775,107250.0,107240.0,0.003]
[1750082779630,0.53543951,107250.0,107240.0,0.21512]
[1750082780520,0.53743951,107250.0,107240.0,0.21412]
[1750082780699,0.53543951,107250.0,107240.0,0.21412]
[1750082781185,0.53743951,107250.0,107240.0,0.21412]
[1750082781414,0.59118346,107250.0,107240.0,0.21412]
[1750082781883,0.38768775,107250.0,107240.0,0.21412]
[1750082782106,0.37069775,107250.0,107240.0,0.21412]
[1750082782334,0.39429775,107250.0,107240.0,0.21412]
[1750082782778,0.02701,107240.0,107230.0,0.202]
[1750082783000,0.3859,107240.0,107210.0,0.2]
[1750082783231,0.05,107170.0,107140.0,0.2497273]
[1750082783474,0.39,107150.0,107130.0,0.05112]
[1750082783733,0.39451,107150.0,107140.0,0.17216]
[1750082783959,0.39451,107150.0,107130.0,0.31976]
[1750082784188,0.41801,107150.0,107140.0,0.1722]
[1750082784413,0.42733978,107150.0,107140.0,0.17216]
[1750082784649,0.43187878,107150.0,107140.0,0.17216]
[1750082784866,0.4319664,107150.0,107130.0,0.31976]
[1750082785154,0.4319664,107150.0,107140.0,0.17212]
[1750082785380,0.3819664,107150.0,107140.0,0.17212]
[1750082785603,0.3549274,107150.0,107140.0,0.17212]
[1750082785828,0.3549274,107150.0,107130.0,0.31976]
[1750082786101,0.3549274,107150.0,107140.0,0.172]
[1750082786330,0.00659762,107150.0,107130.0,0.31976]
[1750082786547,0.00659762,107150.0,107140.0,0.1718]
[1750082786779,0.00659762,107150.0,107140.0,0.17176]
[1750082787215,0.00559762,107150.0,107140.0,0.17176]
[1750082787435,0.03389776,107150.0,107140.0,0.17176]
[1750082787670,0.07113847,107150.0,107140.0,0.00857172]
[1750082787907,0.06454085,107140.0,107100.0,0.10005147]
[1750082788162,0.00451,107120.0,107110.0,0.26872]
[1750082788384,0.00451,107120.0,107110.0,0.50001625]
[1750082788804,0.00451,107120.0,107110.0,0.27729625]
[1750082789460,0.00451,107120.0,107110.0,0.49993625]
[1750082789693,0.00551,107120.0,107110.0,0.27729625]
[1750082790125,0.00551,107120.0,107110.0,0.49981625]
[1750082790126,0.46792868,107120.0,107110.0,0.49981625]
[1750082790334,0.46792868,107120.0,107110.0,0.27729625]
[1750082790335,0.44041,107120.0,107110.0,0.27729625]
[1750082790549,0.44041,107120.0,107110.0,0.49973625]
[1750082790767,0.53579276,107120.0,107110.0,0.49973625]
[1750082791211,0.342,107120.0,107110.0,0.49973625]
[1750082791441,0.342,107120.0,107110.0,0.49971999]
[1750082791661,0.34672,107120.0,107110.0,0.49971999]
[1750082791877,0.342,107120.0,107110.0,0.49971999]
[1750082792289,0.342,107120.0,107110.0,0.27727999]
[1750082792517,0.386392,107120.0,107110.0,0.49951999]
[1750082793216,0.381672,107120.0,107110.0,0.49951999]
[1750082793434,0.381672,107120.0,107110.0,0.49923999]
[1750082793657,0.414439,107120.0,107110.0,0.49935999]
[1750082793882,0.51068076,107120.0,107110.0,0.49935999]
[1750082794109,0.51068076,107120.0,107110.0,0.49931999]
[1750082794324,0.51068076,107120.0,107110.0,0.00855999]
[1750082794536,0.56068076,107120.0,107110.0,0.23039999]
[1750082794749,0.57522161,107120.0,107110.0,0.00855999]
[1750082794977,5.67202161,107120.0,107100.0,0.36893147]
[1750082795187,0.44096176,107110.0,107100.0,0.37747025]
[1750082795393,0.50316392,107110.0,107100.0,0.59061147]
[1750082795608,0.50316392,107110.0,107100.0,0.59915039]
[1750082795812,0.50316392,107110.0,107100.0,0.59915073]
[1750082796023,0.50316392,107110.0,107100.0,0.37747073]
[1750082796239,0.56770477,107110.0,107100.0,0.10859073]
[1750082796466,5.66200477,107110.0,107100.0,0.1090616]
[1750082796686,5.66200477,107110.0,107100.0,0.15168234]
[1750082796687,5.71200477,107110.0,107100.0,0.15168234]
[1750082796903,5.71300477,107110.0,107100.0,0.32208234]
[1750082797331,5.71300477,107110.0,107100.0,0.15168234]
[1750082797549,5.80046696,107110.0,107100.0,0.10052234]
[1750082797993,5.50386085,107090.0,107080.0,0.1]
[1750082798206,5.74625183,107090.0,107080.0,0.10867563]
[1750082798847,5.77430883,107090.0,107080.0,0.10867563]
[1750082799066,5.80868268,107090.0,107080.0,0.10867563]
[1750082799277,5.75868268,107090.0,107080.0,0.10867563]
[1750082799708,5.80868268,107090.0,107080.0,0.10867585]
[1750082799926,5.86277102,107090.0,107080.0,0.10014118]
[1750082800141,5.82839717,107090.0,107080.0,0.10014118]
[1750082800642,5.77530883,107090.0,107080.0,0.10014118]
[1750082800859,5.77730883,107090.0,107080.0,0.10014118]
[1750082801284,5.82279647,107090.0,107080.0,0.10014118]
[1750082801496,5.54182,107080.0,107070.0,0.26896]
[1750082801710,5.73421098,107080.0,107070.0,0.32026113]
[1750082802822,5.73521098,107080.0,107070.0,0.32026113]
[1750082804239,5.74965183,107080.0,107070.0,0.32026113]
[1750082804536,5.75265183,107080.0,107070.0,0.32026113]
[1750082804738,5.73105183,107080.0,107070.0,0.32026113]
[1750082805177,5.73105183,107080.0,107070.0,0.48962113]
[1750082805415,0.19639098,107080.0,107070.0,0.48962113]
[1750082805631,0.004,107080.0,107070.0,0.48962113]
[1750082805849,0.004,107080.0,107070.0,0.49437113]
[1750082806082,0.004,107080.0,107070.0,0.51587113]
[1750082806302,0.004,107080.0,107070.0,0.56097113]
[1750082806751,0.003,107080.0,107070.0,0.53931113]
[1750082807183,0.372773,107100.0,107070.0,0.53931113]
[1750082807402,0.52629206,107100.0,107070.0,0.53931113]
[1750082807624,0.52629206,107100.0,107090.0,0.1867588]
[1750082807851,0.52157206,107100.0,107090.0,0.3557988]
[1750082808290,0.70831342,107100.0,107090.0,0.3557988]
[1750082808534,0.52457206,107100.0,107090.0,0.3557988]
[1750082808786,0.52757206,107100.0,107090.0,0.3557988]
[1750082808992,0.52457206,107100.0,107090.0,0.3557988]
[1750082809223,0.52157206,107100.0,107090.0,0.1867588]
[1750082809443,0.52457206,107100.0,107090.0,0.4048388]
[1750082809667,0.54324575,107100.0,107090.0,0.42351406]
[1750082809893,0.53390851,107100.0,107090.0,0.44218879]
[1750082810111,0.55258185,107100.0,107090.0,0.44218879]
[1750082810348,0.77076801,107100.0,107090.0,0.41417656]
[1750082810608,0.77076801,107100.0,107080.0,0.20086426]
[1750082810609,0.01867508,107090.0,107080.0,0.20086461]
[1750082810816,0.44415559,107090.0,107080.0,0.44205017]
[1750082811035,0.44415524,107090.0,107080.0,0.44205017]
[1750082811262,0.45349291,107090.0,107080.0,0.44205017]
[1750082811472,0.47564548,107090.0,107080.0,0.44205017]
[1750082812108,0.4786454,107090.0,107080.0,0.44205017]
[1750082812352,0.41146233,107090.0,107080.0,0.44680017]
[1750082812566,0.42079992,107090.0,107080.0,0.44680017]
[1750082812791,0.42079983,107090.0,107080.0,0.44680017]
[1750082813634,0.42079983,107090.0,107080.0,0.22888017]
[1750082813848,0.42079983,107090.0,107080.0,0.43710197]
[1750082813849,0.52761111,107090.0,107080.0,0.43710197]
[1750082814070,0.52761102,107090.0,107080.0,0.44644025]
[1750082814290,0.52761111,107090.0,107080.0,0.4277636]
[1750082814513,0.74193081,107090.0,107080.0,0.41842505]
[1750082814752,0.54583469,107090.0,107080.0,0.43710223]
[1750082814978,0.54583469,107090.0,107080.0,0.42776377]
[1750082814979,0.72325599,107090.0,107080.0,0.42776377]
[1750082815209,0.72325599,107090.0,107080.0,0.43710232]
[1750082815438,0.72325599,107090.0,107080.0,0.42301377]
[1750082815748,0.19611505,107080.0,107070.0,0.26910113]
[1750082815977,5.88460167,107080.0,107070.0,0.49513047]
[1750082816224,5.91674802,107080.0,107070.0,0.22585047]
[1750082816482,5.86107626,107080.0,107070.0,0.05805047]
[1750082816716,5.98377237,107080.0,107070.0,0.00877047]
[1750082816952,5.9177875,107080.0,107070.0,0.16977104]
[1750082817655,5.9638675,107080.0,107070.0,0.001]
[1750082817943,5.96287626,107080.0,107070.0,0.21796]
[1750082818193,5.96287626,107080.0,107070.0,0.001]
[1750082818428,5.96287626,107080.0,107070.0,0.21792]
[1750082818929,5.96287626,107080.0,107070.0,0.001]
[1750082819173,5.96287626,107080.0,107070.0,0.2168]
[1750082819415,6.02162516,107080.0,107070.0,0.2168]
[1750082819858,0.72779913,107080.0,107070.0,0.2168]
[1750082820080,0.70921685,107080.0,107070.0,0.2168]
[1750082820326,0.71221685,107080.0,107070.0,0.2168]
[1750082820560,5.76221685,107080.0,107070.0,0.2168]
[1750082821012,5.81796575,107080.0,107070.0,0.2168]
[1750082821226,5.91411497,107080.0,107070.0,0.2168]
[1750082821916,5.66077279,107080.0,107070.0,0.40823368]
[1750082822158,0.61077279,107080.0,107070.0,0.00464]
[1750082822377,0.63865479,107080.0,107070.0,0.22104]
[1750082822594,0.61077279,107080.0,107070.0,0.22104]
[1750082823028,0.63866433,107080.0,107070.0,0.22104]
[1750082823290,0.69764693,107080.0,107070.0,0.42651295]
[1750082823518,0.69764693,107080.0,107070.0,0.41717336]
[1750082823738,0.69764693,107080.0,107070.0,0.43585228]
[1750082823739,0.60149771,107080.0,107070.0,0.43585228]
[1750082823959,0.05604411,107080.0,107070.0,0.49669135]
[1750082824183,0.02815257,107080.0,107070.0,0.49669135]
[1750082824844,0.02815257,107080.0,107070.0,1.1799009]
[1750082825064,0.006,107080.0,107070.0,0.59293311]
[1750082825278,0.003,107080.0,107070.0,0.59293311]
[1750082825478,0.003,107080.0,107070.0,0.59393311]
[1750082825968,0.003,107080.0,107070.0,0.37753311]
[1750082826399,0.003,107080.0,107070.0,0.59361311]
[1750082826616,0.02801215,107090.0,107080.0,0.28729162]
[1750082826834,0.05016481,107090.0,107080.0,0.29193162]
[1750082827082,0.05261543,107090.0,107080.0,0.50801162]
[1750082827292,0.05016472,107090.0,107080.0,0.29193162]
[1750082827508,0.02215257,107090.0,107080.0,0.50801162]
[1750082827714,0.02215257,107090.0,107080.0,0.29193162]
[1750082827955,0.02215257,107090.0,107080.0,0.50801162]
[1750082827956,0.02415257,107090.0,107080.0,0.50801162]
[1750082828203,0.03448972,107090.0,107080.0,0.50801162]
[1750082828443,0.02515257,107090.0,107080.0,0.50801162]
[1750082828692,0.02167439,107090.0,107080.0,0.50801162]
[1750082828939,0.003,107090.0,107080.0,0.29193162]
[1750082829162,0.23992395,107090.0,107080.0,0.28527342]
[1750082829412,0.21479179,107080.0,107070.0,0.00464]
[1750082829650,0.21479179,107080.0,107070.0,0.41221327]
[1750082829651,0.23694436,107080.0,107070.0,0.41221327]
[1750082829884,0.01867805,107070.0,107060.0,0.25451152]
[1750082830111,0.00933889,107070.0,107060.0,0.44536332]
[1750082830364,0.22414995,107070.0,107060.0,0.22928332]
[1750082830586,0.24210642,107070.0,107060.0,0.69576326]
[1750082830810,0.24210642,107070.0,107060.0,0.46100284]
[1750082830811,0.23276744,107070.0,107060.0,0.46100284]
[1750082831018,0.58558094,107070.0,107060.0,0.26955171]
[1750082831276,0.58558094,107070.0,107060.0,0.48563171]
[1750082831493,0.61347248,107070.0,107060.0,0.48563171]
[1750082831739,0.61347248,107070.0,107060.0,0.26955171]
[1750082831966,0.61347248,107070.0,107060.0,0.27355171]
[1750082832180,0.61347248,107070.0,107060.0,0.27055171]
[1750082832402,0.61347248,107070.0,107060.0,0.48663171]
[1750082832595,0.61347248,107070.0,107060.0,0.48763171]
[1750082832831,0.61347248,107070.0,107060.0,0.69212377]
[1750082833051,0.61347248,107070.0,107060.0,0.48663171]
[1750082833304,0.61347248,107070.0,107060.0,0.67344284]
[1750082833510,0.40799997,107070.0,107060.0,0.71080417]
[1750082833692,0.36215257,107070.0,107060.0,0.77568411]
[1750082834100,0.38083044,107070.0,107060.0,0.77568411]
[1750082834333,0.36215257,107070.0,107060.0,0.77568411]
[1750082834820,0.36215257,107070.0,107060.0,0.55960411]
[1750082834821,0.01967822,107070.0,107060.0,0.55960411]
[1750082835037,0.03101772,107070.0,107060.0,0.77568411]
[1750082835253,0.03101755,107070.0,107060.0,0.77568411]
[1750082836286,0.02167822,107070.0,107060.0,0.77568411]
[1750082836531,0.01233898,107070.0,107060.0,0.77568411]
[1750082836745,0.02167814,107070.0,107060.0,0.77568411]
[1750082836957,0.01233898,107070.0,107060.0,0.77568411]
[1750082837212,0.02167805,107070.0,107060.0,0.77568411]
[1750082837648,0.01233898,107070.0,107060.0,0.77568411]
[1750082837866,0.03101729,107070.0,107060.0,0.77568411]
[1750082838089,0.01233898,107070.0,107060.0,0.77568411]
[1750082838308,0.003,107070.0,107060.0,0.77568411]
[1750082839228,0.02167796,107070.0,107060.0,0.77568411]
[1750082839672,0.0310172,107070.0,107060.0,0.77568411]
[1750082839880,0.02167796,107070.0,107060.0,0.77568411]
[1750082840098,0.01233889,107070.0,107060.0,0.77568411]
[1750082840324,0.02167787,107070.0,107060.0,0.77568411]
[1750082841003,0.01233889,107070.0,107060.0,0.77568411]
[1750082841432,0.003,107070.0,107060.0,0.77568411]
[1750082842973,0.01233907,107070.0,107060.0,0.77568411]
[1750082843182,0.01233898,107070.0,107060.0,0.77568411]
[1750082843860,0.003,107070.0,107060.0,0.77568411]
[1750082845212,0.003,107070.0,107060.0,0.87192587]
[1750082845421,0.003,107070.0,107060.0,1.45889366]
[1750082845639,0.003,107070.0,107060.0,0.87192587]
[1750082848935,0.003,107070.0,107060.0,0.70512587]
[1750082849155,0.003,107070.0,107060.0,0.87184587]
[1750082849867,0.003,107070.0,107060.0,0.50306411]
[1750082850126,0.003,107070.0,107060.0,0.72266411]
[1750082850375,0.01233907,107070.0,107060.0,0.72266411]
[1750082850788,0.003,107070.0,107060.0,0.72266411]
[1750082851445,0.01233889,107070.0,107060.0,0.50794411]
[1750082851660,0.003,107070.0,107060.0,0.72266411]
[1750082852125,0.003,107070.0,107060.0,1.45507366]
[1750082852335,0.003,107070.0,107060.0,1.65507366]
[1750082852620,0.10933541,107110.0,107100.0,0.2147515]
[1750082852860,0.128046,107110.0,107100.0,0.4343115]
[1750082853094,0.1,107110.0,107100.0,0.4840115]
[1750082853347,0.1,107110.0,107100.0,1.16722105]